Workbook

Sheet Лист1
DF1: Коэффициенты: | DH1: 100
A4: Выработка за месяц(Комплектовщики)
A6: Фамилия и инициалы | B6: 2013-11-01 | E6: 2013-11-02 | H6: 2013-11-03 | K6: 2013-11-04 | N6: 2013-11-05 | Q6: 2013-11-06 | T6: 2013-11-07 | W6: 2013-11-08 | Z6: 2013-11-09 | AC6: 2013-11-10 | AF6: 2013-11-11 | AI6: 2013-11-12 | AL6: 2013-11-13 | AO6: 2013-11-14 | AR6: 2013-11-15 | AU6: 2013-11-16 | AX6: 2013-11-17 | BA6: 2013-11-18 | BD6: 2013-11-19 | BG6: 2013-11-20 | BJ6: 2013-11-21 | BM6: 2013-11-22 | BP6: 2013-11-23 | BS6: 2013-11-24 | BV6: 2013-11-25 | BY6: 2013-11-26 | CB6: 2013-11-27 | CE6: 2013-11-28 | CH6: 2013-11-29 | CK6: 2013-11-30 | CQ6: Итого за месяц | CT6: Итог общий
B7: Сбор | C7: Разгрузка | D7: Погрузка | E7: Сбор | F7: Разгрузка | G7: Погрузка | H7: Сбор | I7: Разгрузка | J7: Погрузка | K7: Сбор | L7: Разгрузка | M7: Погрузка | N7: Сбор | O7: Разгрузка | P7: Погрузка | Q7: Сбор | R7: Разгрузка | S7: Погрузка | T7: Сбор | U7: Разгрузка | V7: Погрузка | W7: Сбор | X7: Разгрузка | Y7: Погрузка | Z7: Сбор | AA7: Разгрузка | AB7: Погрузка | AC7: Сбор | AD7: Разгрузка | AE7: Погрузка | AF7: Сбор | AG7: Разгрузка | AH7: Погрузка | AI7: Сбор | AJ7: Разгрузка | AK7: Погрузка | AL7: Сбор | AM7: Разгрузка | AN7: Погрузка | AO7: Сбор | AP7: Разгрузка | AQ7: Погрузка | AR7: Сбор | AS7: Разгрузка | AT7: Погрузка | AU7: Сбор | AV7: Разгрузка | AW7: Погрузка | AX7: Сбор | AY7: Разгрузка | AZ7: Погрузка | BA7: Сбор | BB7: Разгрузка | BC7: Погрузка | BD7: Сбор | BE7: Разгрузка | BF7: Погрузка | BG7: Сбор | BH7: Разгрузка | BI7: Погрузка | BJ7: Сбор | BK7: Разгрузка | BL7: Погрузка | BM7: Сбор | BN7: Разгрузка | BO7: Погрузка | BP7: Сбор | BQ7: Разгрузка | BR7: Погрузка | BS7: Сбор | BT7: Разгрузка | BU7: Погрузка | BV7: Сбор | BW7: Разгрузка | BX7: Погрузка | BY7: Сбор | BZ7: Разгрузка | CA7: Погрузка | CB7: Сбор | CC7: Разгрузка | CD7: Погрузка | CE7: Сбор | CF7: Разгрузка | CG7: Погрузка | CH7: Сбор | CI7: Разгрузка | CJ7: Погрузка | CK7: Сбор | CL7: Разгрузка | CM7: Погрузка | CN7: Сбор | CO7: Разгрузка | CP7: Погрузка | CQ7: Сбор | CR7: Разгрузка | CS7: Погрузка
A8: Залётов Павел | CI8: 1111 | CN8: 41 | CQ8: =(CN8+CK8+CH8+CE8+CB8+BY8+BV8+BS8+BP8+BM8+BJ8+BG8+BD8+BA8+AX8+AU8+AR8+AO8+AL8+AI8+AF8+AC8+Z8+W8+T8+Q8+N8+K8+H8+E8+B8)/100 -> 0.41 | CR8: =+CO8+CL8+CI8+CF8+CC8+BZ8+BW8+BT8+BQ8+BN8+BK8+BH8+BE8+BB8+AY8+AV8+AS8+AP8+AM8+AJ8+AG8+AD8+AA8+X8+U8+R8+O8+L8+I8+F8+C8 -> 1111 | CS8: =+CP8+CM8+CJ8+CG8+CD8+CA8+BX8+BU8+BR8+BO8+BL8+BI8+BF8+BC8+AZ8+AW8+AT8+AQ8+AN8+AK8+AH8+AE8+AB8+Y8+V8+S8+P8+M8+J8+G8+D8 -> 0 | CT8: =CS8+CR8+CQ8 -> 1111.41
A9: Зенько Наталья | CB9: 1 | CE9: 1 | CG9: 1 | CH9: 1 | CK9: 1 | CL9: 1 | CO9: 80 | CQ9: =(CN9+CK9+CH9+CE9+CB9+BY9+BV9+BS9+BP9+BM9+BJ9+BG9+BD9+BA9+AX9+AU9+AR9+AO9+AL9+AI9+AF9+AC9+Z9+W9+T9+Q9+N9+K9+H9+E9+B9)/100 -> 0.04 | CR9: =+CO9+CL9+CI9+CF9+CC9+BZ9+BW9+BT9+BQ9+BN9+BK9+BH9+BE9+BB9+AY9+AV9+AS9+AP9+AM9+AJ9+AG9+AD9+AA9+X9+U9+R9+O9+L9+I9+F9+C9 -> 81 | CS9: =+CP9+CM9+CJ9+CG9+CD9+CA9+BX9+BU9+BR9+BO9+BL9+BI9+BF9+BC9+AZ9+AW9+AT9+AQ9+AN9+AK9+AH9+AE9+AB9+Y9+V9+S9+P9+M9+J9+G9+D9 -> 1 | CT9: =CS9+CR9+CQ9 -> 82.04
A10: Садовский Виктор Степанович | CG10: 43 | CN10: 12 | CO10: 1 | CQ10: =(CN10+CK10+CH10+CE10+CB10+BY10+BV10+BS10+BP10+BM10+BJ10+BG10+BD10+BA10+AX10+AU10+AR10+AO10+AL10+AI10+AF10+AC10+Z10+W10+T10+Q10+N10+K10+H10+E10+B10)/100 -> 0.12 | CR10: =+CO10+CL10+CI10+CF10+CC10+BZ10+BW10+BT10+BQ10+BN10+BK10+BH10+BE10+BB10+AY10+AV10+AS10+AP10+AM10+AJ10+AG10+AD10+AA10+X10+U10+R10+O10+L10+I10+F10+C10 -> 1 | CS10: =+CP10+CM10+CJ10+CG10+CD10+CA10+BX10+BU10+BR10+BO10+BL10+BI10+BF10+BC10+AZ10+AW10+AT10+AQ10+AN10+AK10+AH10+AE10+AB10+Y10+V10+S10+P10+M10+J10+G10+D10 -> 43 | CT10: =CS10+CR10+CQ10 -> 44.12
A11: Ловчая Зарринамо | CB11: 1 | CD11: 1 | CF11: 25 | CO11: 1 | CQ11: =(CN11+CK11+CH11+CE11+CB11+BY11+BV11+BS11+BP11+BM11+BJ11+BG11+BD11+BA11+AX11+AU11+AR11+AO11+AL11+AI11+AF11+AC11+Z11+W11+T11+Q11+N11+K11+H11+E11+B11)/100 -> 0.01 | CR11: =+CO11+CL11+CI11+CF11+CC11+BZ11+BW11+BT11+BQ11+BN11+BK11+BH11+BE11+BB11+AY11+AV11+AS11+AP11+AM11+AJ11+AG11+AD11+AA11+X11+U11+R11+O11+L11+I11+F11+C11 -> 26 | CS11: =+CP11+CM11+CJ11+CG11+CD11+CA11+BX11+BU11+BR11+BO11+BL11+BI11+BF11+BC11+AZ11+AW11+AT11+AQ11+AN11+AK11+AH11+AE11+AB11+Y11+V11+S11+P11+M11+J11+G11+D11 -> 1 | CT11: =CS11+CR11+CQ11 -> 27.01
A12: Воротницкий Мирослав | CL12: 23 | CO12: 1 | CQ12: =(CN12+CK12+CH12+CE12+CB12+BY12+BV12+BS12+BP12+BM12+BJ12+BG12+BD12+BA12+AX12+AU12+AR12+AO12+AL12+AI12+AF12+AC12+Z12+W12+T12+Q12+N12+K12+H12+E12+B12)/100 -> 0 | CR12: =+CO12+CL12+CI12+CF12+CC12+BZ12+BW12+BT12+BQ12+BN12+BK12+BH12+BE12+BB12+AY12+AV12+AS12+AP12+AM12+AJ12+AG12+AD12+AA12+X12+U12+R12+O12+L12+I12+F12+C12 -> 24 | CS12: =+CP12+CM12+CJ12+CG12+CD12+CA12+BX12+BU12+BR12+BO12+BL12+BI12+BF12+BC12+AZ12+AW12+AT12+AQ12+AN12+AK12+AH12+AE12+AB12+Y12+V12+S12+P12+M12+J12+G12+D12 -> 0 | CT12: =CS12+CR12+CQ12 -> 24
A13: Роман Александр | CE13: 43 | CH13: 23 | CK13: 3 | CN13: 5 | CO13: 50 | CQ13: =(CN13+CK13+CH13+CE13+CB13+BY13+BV13+BS13+BP13+BM13+BJ13+BG13+BD13+BA13+AX13+AU13+AR13+AO13+AL13+AI13+AF13+AC13+Z13+W13+T13+Q13+N13+K13+H13+E13+B13)/100 -> 0.74 | CR13: 7 | CS13: 3 | CT13: =CS13+CR13+CQ13 -> 10.74
A14: Гирейко Леонид | CE14: 35 | CF14: 1 | CG14: 1 | CH14: 24 | CK14: 34 | CM14: 1 | CO14: 1 | CQ14: =(CN14+CK14+CH14+CE14+CB14+BY14+BV14+BS14+BP14+BM14+BJ14+BG14+BD14+BA14+AX14+AU14+AR14+AO14+AL14+AI14+AF14+AC14+Z14+W14+T14+Q14+N14+K14+H14+E14+B14)/100 -> 0.93 | CR14: =+CO14+CL14+CI14+CF14+CC14+BZ14+BW14+BT14+BQ14+BN14+BK14+BH14+BE14+BB14+AY14+AV14+AS14+AP14+AM14+AJ14+AG14+AD14+AA14+X14+U14+R14+O14+L14+I14+F14+C14 -> 2 | CS14: =+CP14+CM14+CJ14+CG14+CD14+CA14+BX14+BU14+BR14+BO14+BL14+BI14+BF14+BC14+AZ14+AW14+AT14+AQ14+AN14+AK14+AH14+AE14+AB14+Y14+V14+S14+P14+M14+J14+G14+D14 -> 2 | CT14: =CS14+CR14+CQ14 -> 4.93
A15: Ловчий Андрей Владимирович | CN15: 14 | CP15: 1 | CQ15: =(CN15+CK15+CH15+CE15+CB15+BY15+BV15+BS15+BP15+BM15+BJ15+BG15+BD15+BA15+AX15+AU15+AR15+AO15+AL15+AI15+AF15+AC15+Z15+W15+T15+Q15+N15+K15+H15+E15+B15)/100 -> 0.14 | CR15: =+CO15+CL15+CI15+CF15+CC15+BZ15+BW15+BT15+BQ15+BN15+BK15+BH15+BE15+BB15+AY15+AV15+AS15+AP15+AM15+AJ15+AG15+AD15+AA15+X15+U15+R15+O15+L15+I15+F15+C15 -> 0 | CS15: =+CP15+CM15+CJ15+CG15+CD15+CA15+BX15+BU15+BR15+BO15+BL15+BI15+BF15+BC15+AZ15+AW15+AT15+AQ15+AN15+AK15+AH15+AE15+AB15+Y15+V15+S15+P15+M15+J15+G15+D15 -> 1 | CT15: =CS15+CR15+CQ15 -> 1.14
A16: Борташевич Сергей | CE16: 1 | CN16: 1 | CO16: 1 | CQ16: =(CN16+CK16+CH16+CE16+CB16+BY16+BV16+BS16+BP16+BM16+BJ16+BG16+BD16+BA16+AX16+AU16+AR16+AO16+AL16+AI16+AF16+AC16+Z16+W16+T16+Q16+N16+K16+H16+E16+B16)/100 -> 0.02 | CR16: =+CO16+CL16+CI16+CF16+CC16+BZ16+BW16+BT16+BQ16+BN16+BK16+BH16+BE16+BB16+AY16+AV16+AS16+AP16+AM16+AJ16+AG16+AD16+AA16+X16+U16+R16+O16+L16+I16+F16+C16 -> 1 | CS16: =+CP16+CM16+CJ16+CG16+CD16+CA16+BX16+BU16+BR16+BO16+BL16+BI16+BF16+BC16+AZ16+AW16+AT16+AQ16+AN16+AK16+AH16+AE16+AB16+Y16+V16+S16+P16+M16+J16+G16+D16 -> 0 | CT16: =CS16+CR16+CQ16 -> 1.02
A17: Голобурдо Сергей | CI17: 1 | CK17: 1 | CQ17: =(CN17+CK17+CH17+CE17+CB17+BY17+BV17+BS17+BP17+BM17+BJ17+BG17+BD17+BA17+AX17+AU17+AR17+AO17+AL17+AI17+AF17+AC17+Z17+W17+T17+Q17+N17+K17+H17+E17+B17)/100 -> 0.01 | CR17: =+CO17+CL17+CI17+CF17+CC17+BZ17+BW17+BT17+BQ17+BN17+BK17+BH17+BE17+BB17+AY17+AV17+AS17+AP17+AM17+AJ17+AG17+AD17+AA17+X17+U17+R17+O17+L17+I17+F17+C17 -> 1 | CS17: =+CP17+CM17+CJ17+CG17+CD17+CA17+BX17+BU17+BR17+BO17+BL17+BI17+BF17+BC17+AZ17+AW17+AT17+AQ17+AN17+AK17+AH17+AE17+AB17+Y17+V17+S17+P17+M17+J17+G17+D17 -> 0 | CT17: =CS17+CR17+CQ17 -> 1.01
A18: Ментюк Ирина | CE18: 2 | CQ18: =(CN18+CK18+CH18+CE18+CB18+BY18+BV18+BS18+BP18+BM18+BJ18+BG18+BD18+BA18+AX18+AU18+AR18+AO18+AL18+AI18+AF18+AC18+Z18+W18+T18+Q18+N18+K18+H18+E18+B18)/100 -> 0.02 | CR18: =+CO18+CL18+CI18+CF18+CC18+BZ18+BW18+BT18+BQ18+BN18+BK18+BH18+BE18+BB18+AY18+AV18+AS18+AP18+AM18+AJ18+AG18+AD18+AA18+X18+U18+R18+O18+L18+I18+F18+C18 -> 0 | CS18: =+CP18+CM18+CJ18+CG18+CD18+CA18+BX18+BU18+BR18+BO18+BL18+BI18+BF18+BC18+AZ18+AW18+AT18+AQ18+AN18+AK18+AH18+AE18+AB18+Y18+V18+S18+P18+M18+J18+G18+D18 -> 0 | CT18: =CS18+CR18+CQ18 -> 0.02

Sheet Лист2

Sheet Лист3
